{"text_format":"1","workbook":"xlsx","n_sheets":8,"sheets":["Instructions","Summary","Personnel","Fringe","Series 200","Series 300","Series 400","List Options"],"not_rendered":{"charts":0,"images":4,"macros":1,"external_links":0,"defined_names":2,"comments":0,"pivot_tables":0},"unopened":[],"bounds":{"document_bytes":16777216,"sheet_cells":100000,"rows_first":2000,"rows_last":500,"rows_between":2000,"halvings":0,"cell_chars":16384,"cell_head_chars":4096},"cells_cut":0,"cells_raw":0,"read":"whole","date_system":"1900"}

{"sheet":"Instructions","index":0,"n_rows":14,"n_cols":2,"rows_kept":14,"cut":false,"hidden":false,"merged":[[0,0,0,10],[2,0,2,10],[4,0,4,10],[6,0,6,10],[9,1,9,10],[11,1,11,10],[12,1,12,10],[13,1,13,10],[7,1,7,10],[10,1,10,10],[8,1,8,10]]}
["Budget Instructions"]
[]
["The applicant shall specify costs, including all anticipated costs for successful implementation of all deliverables outlined using this budget worksheet. The budget worksheet must be completed for each contract/grant year and demonstrate how costs were determined. The budget shall remain the same with few revisions for the term of the contract.   \nThe budget should set forth the costs as follows:\n-Allowable costs associated with staff, services, supplies, meetings, transportation, and other activities relative to achieving outlined goals  \n-Details on any additional funding outside of Community Corrections & Justice Reinvestment Grants being used to support this proposal; including source, amount and purpose of funds.\n\nThe proposed budget should be complete, cost effective, and allowable (i.e. reasonable, allocable, and necessary for project activities). \n\n"]
[]
["Notes:\nDo not change the names of the tabs. You may add additional rows to each section by selecting the button \"Add New Row\" and it will insert a new row. You will not have the capability to delete rows.\n"]
[]
["Budget Category Descriptions:"]
["Summary","Community Corrections Entities: Select the name of the Advisory Board from the drop down\n1006 Entities: Select the name of the county that the program is established in\n\nThis form automatically calculates from the budget detail tabs\n"]
["Project Income vs. User Fees","Project Income: The amount the program budgets from the county Community Corrections Project Income Fund.\nUser Fees: The amount  the program budgets from other user fee accounts. \n"]
["Series 100: Personnel","List each position by title and name of employee (if available) under the proposed grant program. If a position splits its time between multiple grant programs, please list it in the budget for the program where it will spend the majority of the time. Do not list one position in multiple grant program budgets.\n"]
["Series 100: Fringe","Fringe benefits should be based on actual known costs or an approved negotiated rate by a county agency.  Fringe benefits are for the personnel listed in the Series 100: Personnel section. "]
["Series 200: Supplies","Itemize or list all supplies under this grant program including, but not limited to: office supplies, vehicle supplies, program materials, etc. "]
["Series 300: Contractual Services","Itemize or list all services under this grant program including, but not limited to: leasing of equipment, travel/training, professional contracts, etc. "]
["Series 400: Capital","Itemize or list all equipment under this grant program including, but not limited to: office equipment, vehicles, monitoring equipment, etc. "]

{"sheet":"Summary","index":1,"n_rows":26,"n_cols":8,"rows_kept":26,"cut":false,"hidden":false,"merged":[[19,0,19,7],[12,0,12,7],[5,1,5,3],[0,0,0,7],[1,0,1,7],[7,1,7,3],[3,1,3,5]]}
["Community Corrections & Justice Reinvestment Grants"]
["CY2024 \nCOUNTY BUDGET SUMMARY"]
[]
["ADVISORY BOARD NAME: ","Select from the Dropdown Options"]
[]
["ENTITY:","Select from the Dropdown Options"]
[]
["AGENCY NAME:","(Type Here)"]
[]
[]
[]
[]
["Personnel Summary"]
[null,"Grant","Project Income","User Fees","County General","IOCS Grant","Other","Total"]
["Salary",{"$f":"Personnel!E17","v":0},{"$f":"Personnel!F17","v":0},{"$f":"Personnel!G17","v":0},{"$f":"Personnel!H17","v":0},{"$f":"Personnel!I17","v":0},{"$f":"Personnel!J17","v":0},{"$f":"Personnel!K17","v":0}]
["Fringe",{"$f":"Fringe!B16","v":0},{"$f":"Fringe!C16","v":0},{"$f":"Fringe!D16","v":0},{"$f":"Fringe!E16","v":0},{"$f":"Fringe!F16","v":0},{"$f":"Fringe!G16","v":0},{"$f":"Fringe!H16","v":0}]
["Total",{"$f":"SUM(B15:B16)","v":0},{"$f":"SUM(C15:C16)","v":0},0,0,{"$f":"SUM(F15:F16)","v":0},0,0]
[]
[]
["Budget Summary"]
["Series","Grant","Project Income","User Fees","County General","IOCS Grant","Other","Total"]
[100,{"$f":"B17","v":0},{"$f":"SUM(C15:C16)","v":0},{"$f":"SUM(D15:D16)","v":0},{"$f":"SUM(E15:E16)","v":0},{"$f":"SUM(F15:F16)","v":0},{"$f":"SUM(G15:G16)","v":0},{"$f":"SUM(B22:G22)","v":0}]
[200,{"$f":"'Series 200'!B25","v":0},{"$f":"'Series 200'!C25","v":0},{"$f":"'Series 200'!D25","v":0},{"$f":"'Series 200'!E25","v":0},{"$f":"'Series 200'!F25","v":0},{"$f":"'Series 200'!G25","v":0},{"$f":"'Series 200'!H25","v":0}]
[300,{"$f":"'Series 300'!C30","v":0},{"$f":"'Series 300'!D30","v":0},{"$f":"'Series 300'!E30","v":0},{"$f":"'Series 300'!F30","v":0},{"$f":"'Series 300'!G30","v":0},{"$f":"'Series 300'!H30","v":0},{"$f":"'Series 300'!I30","v":0}]
[400,{"$f":"'Series 400'!B21","v":0},{"$f":"'Series 400'!C21","v":0},{"$f":"'Series 400'!D21","v":0},{"$f":"'Series 400'!E21","v":0},{"$f":"'Series 400'!F21","v":0},{"$f":"'Series 400'!G21","v":0},{"$f":"'Series 400'!H21","v":0}]
["Total",{"$f":"SUM(B22:B25)","v":0},{"$f":"SUM(C22:C25)","v":0},0,0,{"$f":"SUM(F22:F25)","v":0},0,{"$f":"SUM(H22:H25)","v":0}]

{"sheet":"Personnel","index":2,"n_rows":17,"n_cols":11,"rows_kept":17,"cut":false,"hidden":false,"merged":[[0,0,0,3],[1,0,1,3],[4,0,4,10],[16,0,16,3],[2,0,2,3]]}
[{"$f":"Summary!B4","v":"Select from the Dropdown Options"}]
[{"$f":"Summary!B6","v":"Select from the Dropdown Options"}]
[{"$f":"Summary!B8","v":"(Type Here)"}]
[]
["Series 100: Personnel"]
["Select the cell to trigger the dropdown options. \nFrom the list of options, select the best option that describes what type of position it is.\n *This is for reporting purposes only*","Select the cell to trigger the dropdown options. \nFrom the list of options, select the whether the position is a New (i.e., new request), a current employee, or whether the position is vacant","Select the cell to trigger the dropdown options. \nFrom the list of options, select whether the proposed employee is  full or part time","Type in the Title of the Position","Type in the amount of requested grant funding for this line item","Type in the estimated amount of Project Income used to support this line item\nIf none, enter 0","Type in the amount of user fees used to support this line item\nIf none, enter 0","Type in the amount of county general used to support this line item\nIf none, enter 0","*Pretrial Services and Veterans Court Only*                           Type in the amount of IOCS requested grant funding for this line item","Type in the amount of any other funding sources (federal grants, states grants, local grants, etc.) used to support this line item\nIf none, enter 0"," Gross Salary of the Position:\nNo action of this cell. It auto calculates to a total based on the previous figures\n"]
["Position Category","Employee Status","Full or Part Time","Position / Title Name","Grant","Project Income"," User Fees ","County General","IOCS Grant (Pre-Trial and Vet Court Only)","Other","Total \n"]
[]
["Select from the Dropdown Options","Select from the Dropdown Options","Select from the Dropdown Options",null,null,null,null,null,null,null,{"$f":"SUM(Table26[[#This Row],[Grant]:[Other]])","v":0}]
["Select from the Dropdown Options","Select from the Dropdown Options","Select from the Dropdown Options",null,null,null,null,null,null,null,{"$f":"SUM(Table26[[#This Row],[Grant]:[Other]])","v":0}]
["Select from the Dropdown Options","Select from the Dropdown Options","Select from the Dropdown Options",null,null,null,null,null,null,null,{"$f":"SUM(Table26[[#This Row],[Grant]:[Other]])","v":0}]
[null,null,null,null,null,null,null,null,null,null,{"$f":"SUM(Table26[[#This Row],[Grant]:[Other]])","v":0}]
[null,null,null,null,null,null,null,null,null,null,{"$f":"SUM(Table26[[#This Row],[Grant]:[Other]])","v":0}]
[null,null,null,null,null,null,null,null,null,null,{"$f":"SUM(Table26[[#This Row],[Grant]:[Other]])","v":0}]
[null,null,null,null,null,null,null,null,null,null,{"$f":"SUM(Table26[[#This Row],[Grant]:[Other]])","v":0}]
[null,null,null,null,null,null,null,null,null,null,{"$f":"SUM(Table26[[#This Row],[Grant]:[Other]])","v":0}]
["Subtotals",null,null,null,{"$f":"SUM(Table26[Grant])","v":0},{"$f":"SUM(Table26[Project Income])","v":0},{"$f":"SUM(Table26[[ User Fees ]])","v":0},{"$f":"SUM(Table26[County General])","v":0},{"$f":"SUM(Table26[IOCS Grant (Pre-Trial and Vet Court Only)])","v":0},{"$f":"SUM(Table26[Other])","v":0},{"$f":"SUM(Table26[Total \n])","v":0}]

{"sheet":"Fringe","index":3,"n_rows":16,"n_cols":8,"rows_kept":16,"cut":false,"hidden":false,"merged":[[0,0,0,2],[1,0,1,2],[4,0,4,7],[2,0,2,3]]}
[{"$f":"Summary!B4","v":"Select from the Dropdown Options"}]
[{"$f":"Summary!B6","v":"Select from the Dropdown Options"}]
[{"$f":"Summary!B8","v":"(Type Here)"}]
[]
["Series 100: Fringe"]
[null,"Type in the amount of requested grant funding for this line item","Type in the estimated amount of Project Income used to support this line item\nIf none, enter 0","Type in the amount of user fees used to support this line item\nIf none, enter 0","Type in the amount of county general used to support this line item\nIf none, enter 0","*Pretrial Services and Veterans Court Only*                           Type in the amount of IOCS requested grant funding for this line item","Type in the amount of any other funding sources (federal grants, states grants, local grants, etc.) used to support this line item\nIf none, enter 0"," Total Line Item Cost:\nNo action of this cell. It auto calculates to a total based on the previous figures\n"]
["Categroy","Grant","Project Income"," User Fees ","County General","IOCS Grant (Pre-Trial and Vet Court Only)","Other","Total"]
["WORKER'S COMPENSATION",null,null,null,null,null,null,{"$f":"SUM(B8:G8)","v":0}]
["OVERTIME",null,null,null,null,null,null,{"$f":"SUM(B9:G9)","v":0}]
["UNEMPLOYMENT",null,null,null,null,null,null,0]
["FICA (SOCIAL SECURITY)",null,null,null,null,null,null,0]
["HEALTH INSURANCE",null,null,null,null,null,null,0]
["PERF",null,null,null,null,null,null,0]
["OTHER",null,null,null,null,null,null,{"$f":"SUM(B14:G14)","v":0}]
[]
["Subtotals",{"$f":"SUM(Table9[Grant])","v":0},{"$f":"SUM(Table9[Project Income])","v":0},{"$f":"SUM(Table9[[ User Fees ]])","v":0},{"$f":"SUM(Table9[County General])","v":0},{"$f":"SUM(Table9[IOCS Grant (Pre-Trial and Vet Court Only)])","v":0},{"$f":"SUM(Table9[Other])","v":0},{"$f":"SUM(Table9[Total])","v":0}]

{"sheet":"Series 200","index":4,"n_rows":25,"n_cols":8,"rows_kept":25,"cut":false,"hidden":false,"merged":[[0,0,0,2],[1,0,1,2],[4,0,4,7],[2,0,2,3]]}
[{"$f":"Summary!B4","v":"Select from the Dropdown Options"}]
[{"$f":"Summary!B6","v":"Select from the Dropdown Options"}]
[{"$f":"Summary!B8","v":"(Type Here)"}]
[]
["Series 200: Supplies"]
[null,"Type in the amount of requested grant funding for this line item","Type in the estimated amount of Project Income used to support this line item\nIf none, enter 0","Type in the amount of user fees used to support this line item\nIf none, enter 0","Type in the amount of county general used to support this line item\nIf none, enter 0","*Pretrial Services and Veterans Court Only*                           Type in the amount of IOCS requested grant funding for this line item","Type in the amount of any other funding sources (federal grants, states grants, local grants, etc.) used to support this line item\nIf none, enter 0"," Total Line Item Cost:\nNo action of this cell. It auto calculates to a total based on the previous figures\n"]
["Category","Grant","Project Income","User Fees ","County General","IOCS Grant (Pre-Trial and Vet Court Only)","Other","Total"]
["GENERAL OFFICE SUPPLIES",null,null,null,null,null,null,{"$f":"SUM(B8:G8)","v":0}]
["COPIER SUPPLIES",null,null,null,null,null,null,0]
["CLEANING SUPPLIES",null,null,null,null,null,null,0]
["FIRST AID",null,null,null,null,null,null,0]
["WEARING APPAREL ",null,null,null,null,null,null,0]
["DRUG TESTING SUPPLIES",null,null,null,null,null,null,0]
["ASSESSMENTS",null,null,null,null,null,null,{"$f":"SUM(B14:G14)","v":0}]
["PROGRAM & EDUCATION MATERIALS",null,null,null,null,null,null,{"$f":"SUM(B15:G15)","v":0}]
["INCENTIVES",null,null,null,null,null,null,0]
["FOOD (FOR CLIENTS)",null,null,null,null,null,null,0]
["MOTOR VEHICLE SUPPLIES",null,null,null,null,null,null,0]
["BUIDLING MAINTENANCE SUPPLIES",null,null,null,null,null,null,0]
["PREVENTATIVE MAINTENANCE SUPPLIES",null,null,null,null,null,null,0]
["OTHER SUPPLIES (LIST BELOW):"]
["(Type Here)",null,null,null,null,null,null,{"$f":"SUM(B22:G22)","v":0}]
[null,null,null,null,null,null,null,{"$f":"SUM(B23:G23)","v":0}]
["(Type Here)",null,null,null,null,null,null,{"$f":"SUM(B24:G24)","v":0}]
["Subtotals",{"$f":"SUM(B8:B24)","v":0},0,0,0,0,0,0]

{"sheet":"Series 300","index":5,"n_rows":30,"n_cols":9,"rows_kept":30,"cut":false,"hidden":false,"merged":[[23,1,23,8],[1,0,1,2],[4,0,4,7],[0,0,0,2],[2,0,2,3]]}
[{"$f":"Summary!B4","v":"Select from the Dropdown Options"}]
[{"$f":"Summary!B6","v":"Select from the Dropdown Options"}]
[{"$f":"Summary!B8","v":"(Type Here)"}]
[]
["Series 300: Services"]
[null,"Type in the amount of requested grant funding for this line item","Type in the estimated amount of Project Income used to support this line item\nIf none, enter 0","Type in the amount of user fees used to support this line item\nIf none, enter 0","Type in the amount of county general used to support this line item\nIf none, enter 0","*Pretrial Services and Veterans Court Only*                           Type in the amount of IOCS requested grant funding for this line item","Type in the amount of any other funding sources (federal grants, states grants, local grants, etc.) used to support this line item\nIf none, enter 0"," Total Line Item Cost:\nNo action of this cell. It auto calculates to a total based on the previous figures\n"]
["Category","Grant","Project Income","User Fees","County General","IOCS Grant (Pre-Trial and Vet Court Only)","Other","Total"]
["BUILDING LEASE",null,null,null,null,null,null,{"$f":"SUM(B8:G8)","v":0}]
["BUILDING MAINTENANCE/REPAIRS",null,null,null,null,null,null,0]
["UTILITIES",null,null,null,null,null,null,0]
["PEST CONTROL",null,null,null,null,null,null,0]
["WASTE MANAGEMENT",null,null,null,null,null,null,{"$f":"SUM(B12:G12)","v":0}]
["VEHICLE LEASING",null,null,null,null,null,null,0]
["INSURANCE",null,null,null,null,null,null,0]
["FOOD & VENDING",null,null,null,null,null,null,0]
["LAUNDRY",null,null,null,null,null,null,0]
["POSTAGE",null,null,null,null,null,null,0]
["COPIER & PRINTING",null,null,null,null,null,null,0]
["INTERNET",null,null,null,null,null,null,0]
["TELEPHONE",null,null,null,null,null,null,0]
["DUES & SUBSCRIPTIONS",null,null,null,null,null,null,0]
["CONFERENCES",null,null,null,null,null,null,0]
[]
["PROFESSIONAL  SERVICES CONTRACTS \n"]
["Type","CONTRACTOR/ SERVICE PROVIDER NAME","Grant","Project Income","User Fees","County General","IOCS Grant (Pre-Trial and Vet Court Only)","Other","Total"]
["Select from the Dropdown Options","(Type Here)",null,null,null,null,null,null,{"$f":"SUM(C26:H26)","v":0}]
["Select from the Dropdown Options","(Type Here)",null,null,null,null,null,null,0]
[null,null,null,null,null,null,null,null,{"$f":"SUM(C28:H28)","v":0}]
["Select from the Dropdown Options","(Type Here)",null,null,null,null,null,null,0]
["Subtotals",null,{"$f":"SUM(Table6[Grant])+SUM(Table7[Grant])","v":0},{"$f":"SUM(Table6[Project Income])+SUM(Table7[Project Income])","v":0},{"$f":"SUM(Table6[User Fees])+SUM(Table7[User Fees])","v":0},{"$f":"SUM(Table6[County General])+SUM(Table7[County General])","v":0},{"$f":"SUM(Table6[IOCS Grant (Pre-Trial and Vet Court Only)])+SUM(Table7[IOCS Grant (Pre-Trial and Vet Court Only)])","v":0},{"$f":"SUM(Table6[Other])+SUM(Table7[Other])","v":0},{"$f":"SUM(Table6[Total])+SUM(Table7[Total])","v":0}]

{"sheet":"Series 400","index":6,"n_rows":21,"n_cols":8,"rows_kept":21,"cut":false,"hidden":false,"merged":[[0,0,0,2],[1,0,1,2],[4,0,4,7],[2,0,2,3]]}
[{"$f":"Summary!B4","v":"Select from the Dropdown Options"}]
[{"$f":"Summary!B6","v":"Select from the Dropdown Options"}]
[{"$f":"Summary!B8","v":"(Type Here)"}]
[]
["Series 400: Capital Equipment"]
[null,"Type in the amount of requested grant funding for this line item","Type in the estimated amount of Project Income used to support this line item\nIf none, enter 0","Type in the amount of user fees used to support this line item\nIf none, enter 0","Type in the amount of county general used to support this line item\nIf none, enter 0","*Pretrial Services and Veterans Court Only*                           Type in the amount of IOCS requested grant funding for this line item","Type in the amount of any other funding sources (federal grants, states grants, local grants, etc.) used to support this line item\nIf none, enter 0"," Total Line Item Cost:\nNo action of this cell. It auto calculates to a total based on the previous figures\n"]
["Category","Grant","Project Income","User Fees ","County General","IOCS Grant (Pre-Trial and Vet Court Only)","Other","Total"]
["OFFICE EQUIPMENT",null,null,null,null,null,null,{"$f":"SUM(B8:G8)","v":0}]
["VEHICLES",null,null,null,null,null,null,0]
["DATA PROCESSING EQUIPMENT",null,null,null,null,null,null,0]
["WORK CREW EQUIPMENT",null,null,null,null,null,null,0]
["ELECTRONIC MONITORING EQUIPMENT",null,null,null,null,null,null,0]
["MISC. EQUIPMENT (LIST BELOW):"]
["(Type Here)",null,null,null,null,null,null,{"$f":"SUM(B14:G14)","v":0}]
[null,null,null,null,null,null,null,{"$f":"SUM(B15:G15)","v":0}]
[null," ",null,null,null,null,null,{"$f":"SUM(B16:G16)","v":0}]
[null,null,null,null,null,null,null,{"$f":"SUM(B17:G17)","v":0}]
[null,null,null,null,null,null,null,{"$f":"SUM(B18:G18)","v":0}]
[null,null,null,null,null,null,null,{"$f":"SUM(B19:G19)","v":0}]
["(Type Here)",null,null,null,null,null,null,0]
["Subtotals",{"$f":"SUM(B8:B20)","v":0},{"$f":"SUM(C8:C20)","v":0},0,0,0,0,0]

{"sheet":"List Options","index":7,"n_rows":101,"n_cols":8,"rows_kept":101,"cut":false,"hidden":true,"merged":[]}
["Advisory Board or County Name",null,"Entity Types",null,"Position Category","Full or Part Time","Status"]
["Select from the Dropdown Options",null,"Select from the Dropdown Options",null,"Select from the Dropdown Options","Select from the Dropdown Options","Select from the Dropdown Options","Select from the Dropdown Options"]
["Adams",null,"CC Community Supervision",null,"Grant Director","Full","New Position","Home Detention Equipment"]
["Allen",null,"CC Residential/Work Release",null,"Chief Probation Officer","Part","Current Position","GPS Equipment"]
["Bartholomew",null,"Probation",null,"Court Coordinator",null,"Vacant","Alcohol Monitoring Equipment"]
["Benton",null,"Pretrial Services",null,"Other Executive Staff",null,null,"Surveillance or Monitoring Services or Agency"]
["Blackford",null,"Prosecutor's Diversion",null,"Pretrial Coordinator",null,null,"Residential/Work Release Beds"]
["Boone",null,"Jail Treatment",null,"Administrative or Support",null,null,"Drug Testing Kits"]
["Brown",null,"Alcohol & Drug Program",null,"Maintenance or Facility",null,null,"Drug Testing Services"]
["Carroll",null,"Domestic Violence Court",null,"Business or Financial Manager",null,null,"Medical Services"]
["Cass/Pulaski Regional",null,"Drug Court",null,"Intake or Screening",null,null,"Treatment Center"]
["Cass",null,"Mental Health Court",null,"Certified Probation Officer",null,null,"Facilitator"]
["Pulaski ",null,"Re-entry Court",null,"Probation Officer Assistant",null,null,"Transportation"]
["Clark",null,"Veterans Court",null,"Problem Solving Court Officer",null,null,"Training"]
["Clay",null,null,null,"Pretrial Officer",null,null,"Other"]
["Clinton",null,null,null,"Case Manager"]
["Daviess",null,null,null,"Residential Correctional Officer"]
["Decatur",null,null,null,"Field or Surveillance Officer"]
["DeKalb",null,null,null,"Supervisor"]
["Delaware",null,null,null,"Program or Service Coordinator"]
["Dubois",null,null,null,"Facilitator"]
["Elkhart",null,null,null,"Counselor"]
["Fayette",null,null,null,"Legal"]
["Floyd",null,null,null,"Intern"]
["Franklin",null,null,null,"Team Leader"]
["Fulton",null,null,null,"Other"]
["Gibson"]
["Grant"]
["Greene"]
["Hamilton"]
["Hancock"]
["Harrison"]
["Hendricks"]
["Henry"]
["Hoosier Hills Regional"]
["Crawford "]
["Orange"]
["Howard"]
["Huntington"]
["Jackson/Jennings Regional"]
["Jackson"]
["Jennings"]
["Jasper"]
["Jay"]
["Jefferson"]
["Johnson"]
["Kosciusko"]
["Lake"]
["LaPorte"]
["Lawrence"]
["Madison"]
["Marion"]
["Marshall"]
["Martin"]
["Miami"]
["Monroe"]
["Morgan"]
["Newton"]
["Noble"]
["Northeast Regional"]
["Steuben"]
["LaGrange"]
["Owen"]
["Perry"]
["Porter"]
["Posey"]
["Putnam"]
["Randolph"]
["Ripley"]
["Rush"]
["Scott"]
["Shelby"]
["Southeast Regional"]
["Dearborn"]
["Ohio"]
["Switzerland"]
["Spencer"]
["St. Joseph"]
["Starke"]
["Sullivan"]
["Tippecanoe"]
["Tipton"]
["Union"]
["Vanderburgh"]
["Vigo"]
["Wabash"]
["Wabash Valley Regional"]
["Knox"]
["Pike"]
["Warrick"]
["Washington"]
["Wayne"]
["Wells"]
["West Central Regional"]
["Fountain"]
["Warren"]
["Parke"]
["Vermillion"]
["Warren"]
["White"]
["Whitley"]